[Event "LEM Niedersachsen-A-Open 2025"]
[Site "Verden"]
[Date "2025.01.04"]
[Round "6.25"]
[White "Kozik, Andreas"]
[Black "Langer, Michael S."]
[Result "1/2-1/2"]
[ECO "D00"]
[WhiteElo "1868"]
[BlackElo "1933"]
[Annotator "NA RC"]
[PlyCount "51"]
[EventDate "2024.12.27"]
[EventType "swiss"]
[EventCountry "GER"]
[SourceTitle "playchess.com"]
[Source "ChessBase"]
[SourceQuality "1"]
[TimeControl "40/5400+30:1800+30"]

1. d4 {[%emt 0:00:01]} d5 {[%emt 0:00:13]} 2. Bf4 {[%emt 0:00:06]} Nf6 {[%emt 0:00:25]} 3. e3 {[%emt 0:00:11]} e6 {[%emt 0:00:44]} 4. Nd2 {[%emt 0:01:17]} c6 {[%emt 0:02:16]} 5. c3 {[%emt 0:00:36]} Bd6 {[%emt 0:01:37]} 6. Bg3 {[%emt 0:00:13]} O-O {[%emt 0:01:21]} 7. Bd3 {[%emt 0:01:42]} b6 {[%emt 0:01:05]} 8. Ngf3 {[%emt 0:00:33]} Ba6 {[%emt 0:08:35]} 9. Bxa6 {[%emt 0:00:06]} Nxa6 {[%emt 0:00:04]} 10. Qe2 {[%emt 0:00:09]} Bxg3 {[%emt 0:02:55]} 11. hxg3 {[%emt 0:00:19]} Nb8 {[%emt 0:01:17]} 12. e4 {[%emt 0:00:56]} dxe4 {[%emt 0:13:52]} 13. Nxe4 {[%emt 0:00:09]} Nbd7 {[%emt 0:04:43]} 14. O-O-O {[%emt 0:01:12]} Qc7 {[%emt 0:02:03]} 15. Rh4 {[%emt 0:05:15]} Nxe4 {[%emt 0:04:16]} 16. Qxe4 {[%emt 0:00:24]} Nf6 {[%emt 0:00:11]} 17. Qc2 {[%emt 0:01:10]} Rfd8 {[%emt 0:02:23]} 18. Rdh1 {[%emt 0:12:39]} h6 {[%emt 0:05:12]} 19. Qd2 {[%emt 0:06:49]} Kf8 {[%emt 0:01:24]} 20. Qe2 {[%emt 0:23:29]} c5 {[%emt 0:02:07]} 21. Kb1 {[%emt 0:01:35]} Rac8 {[%emt 0:01:35]} 22. Rd1 {[%emt 0:06:50]} cxd4 {[%emt 0:02:23]} 23. Rhxd4 {[%emt 0:00:41]} Rd5 {[%emt 0:05:02]} 24. Rxd5 {[%emt 0:01:23]} Nxd5 {[%emt 0:00:43]} 25. Qe5 {[%emt 0:05:48]} Qxe5 {[%emt 0:05:54]} 26. Nxe5 {[%emt 0:00:05]} 1/2-1/2

[Event "LEM Niedersachsen-A-Open 2025"]
[Site "Verden"]
[Date "2025.01.04"]
[Round "6.26"]
[White "Boehnke, Marc"]
[Black "Burnus, Finn Crispin"]
[Result "1-0"]
[ECO "D36"]
[WhiteElo "1927"]
[BlackElo "1883"]
[Annotator "RC"]
[PlyCount "101"]
[EventDate "2024.12.27"]
[EventType "swiss"]
[EventCountry "GER"]
[SourceTitle "playchess.com"]
[Source "ChessBase"]
[SourceQuality "1"]
[TimeControl "40/5400+30:1800+30"]

1. d4 {[%emt 0:00:03]} Nf6 {[%emt 0:00:05]} 2. c4 {[%emt 0:00:07]} e6 {[%emt 0:00:04]} 3. Nf3 {[%emt 0:00:07]} d5 {[%emt 0:00:10]} 4. Nc3 {[%emt 0:00:08]} Be7 {[%emt 0:00:06]} 5. Bg5 {[%emt 0:00:06]} h6 {[%emt 0:00:09]} 6. Bh4 {[%emt 0:00:04]} O-O {[%emt 0:00:48]} 7. e3 {[%emt 0:00:11]} Nbd7 {[%emt 0:00:52]} 8. cxd5 {[%emt 0:02:47]} exd5 {[%emt 0:00:10]} 9. Bd3 {[%emt 0:00:05]} c6 {[%emt 0:03:12]} 10. O-O {[%emt 0:01:29]} Re8 {[%emt 0:00:15]} 11. Qc2 {[%emt 0:01:14]} Ne4 {[%emt 0:01:08]} 12. Bxe7 {[%emt 0:08:56]} Qxe7 {[%emt 0:01:08]} 13. Rae1 {[%emt 0:04:04]} Ndf6 {[%emt 0:04:36]} 14. Ne5 {[%emt 0:02:14]} Nxc3 {[%emt 0:05:15]} 15. bxc3 {[%emt 0:01:06]} Be6 {[%emt 0:03:47]} 16. f4 {[%emt 0:05:43]} c5 {[%emt 0:03:37]} 17. Qb2 {[%emt 0:04:29]} Rab8 {[%emt 0:06:44]} 18. Rb1 {[%emt 0:15:09]} Bd7 {[%emt 0:11:05]} 19. Qa3 {[%emt 0:16:08]} c4 {[%emt 0:03:37]} 20. Qxe7 {[%emt 0:01:10]} Rxe7 {[%emt 0:00:07]} 21. Be2 {[%emt 0:01:07]} Bf5 {[%emt 0:03:20]} 22. Rb5 {[%emt 0:05:14]} Rd8 {[%emt 0:09:47]} 23. Bf3 {[%emt 0:04:40]} h5 {[%emt 0:03:42]} 24. Re1 {[%emt 0:05:57]} Be4 {[%emt 0:01:13]} 25. Kf2 {[%emt 0:00:57]} Rd6 {[%emt 0:00:45]} 26. a4 {[%emt 0:01:46]} g6 {[%emt 0:04:42]} 27. a5 {[%emt 0:00:21]} Kg7 {[%emt 0:00:07]} 28. Re2 {[%emt 0:00:39]} b6 {[%emt 0:04:26]} 29. Reb2 {[%emt 0:01:41]} Rb7 {[%emt 0:00:09]} 30. Ke1 {[%emt 0:02:21]} Bf5 {[%emt 0:01:02]} 31. Nxc4 {[%emt 0:01:14]} Rc6 {[%emt 0:05:01]} 32. Ne5 {[%emt 0:01:32]} Rxc3 {[%emt 0:01:16]} 33. Kd2 {[%emt 0:00:09]} Rbc7 {[%emt 0:01:54]} 34. axb6 {[%emt 0:00:50]} axb6 {[%emt 0:00:05]} 35. Rxb6 {[%emt 0:00:28]} Ne4+ {[%emt 0:04:10]} 36. Ke2 {[%emt 0:00:44]} Rc1 {[%emt 0:06:16]} 37. Rb7 {[%emt 0:04:10]} Nc3+ {[%emt 0:02:24]} 38. Kf2 {[%emt 0:02:17]} Ne4+ {[%emt 0:00:10]} 39. Bxe4 {[%emt 0:01:47]} Bxe4 {[%emt 0:00:07]} 40. Rxc7 {[%emt 0:00:05]} Rxc7 {[%emt 0:00:06]} 41. Nf3 {[%emt 0:32:05]} f6 {[%emt 0:33:29]} 42. Nd2 {[%emt 0:00:57]} Bf5 {[%emt 0:01:25]} 43. h3 {[%emt 0:00:32]} Kf7 {[%emt 0:00:17]} 44. Ke2 {[%emt 0:00:57]} Ke6 {[%emt 0:05:01]} 45. Kf3 {[%emt 0:01:03]} h4 {[%emt 0:00:00]} 46. Kf2 {[%emt 0:00:00]} Bd3 {[%emt 0:00:00]} 47. Nf3 {[%emt 0:00:00]} Rh7 {[%emt 0:00:00]} 48. Rb6+ {[%emt 0:00:00]} Kf5 {[%emt 0:00:00]} 49. Nxh4+ {[%emt 0:00:00]} Rxh4 {[%emt 0:00:00]} 50. g4+ {[%emt 0:00:00]} Ke4 {[%emt 0:00:00]} 51. Re6# {[%emt 0:00:00]} 1-0

[Event "LEM Niedersachsen-A-Open 2025"]
[Site "Verden"]
[Date "2025.01.04"]
[Round "6.27"]
[White "Kiesel, Lara"]
[Black "Eschholz, Enno"]
[Result "0-1"]
[ECO "A85"]
[WhiteElo "1825"]
[BlackElo "2121"]
[Annotator "TA"]
[PlyCount "98"]
[EventDate "2024.12.27"]
[EventType "swiss"]
[EventCountry "GER"]
[SourceTitle "playchess.com"]
[Source "ChessBase"]
[SourceQuality "1"]
[TimeControl "40/5400+30:1800+30"]

{[%evp 12,98,29,23,50,0,-5,0,2,-54,-59,-51,-49,-53,-46,-63,-52,-106,-108,-101,-81,-69,-41,-50,-46,-50,-64,-63,-58,-111,-68,-66,-75,-70,-70,-88,-26,-26,193,-26,-24,-37,-36,-44,-48,-151,-158,-127,-100,-279,-268,-311,-306,-332,-169,-143,-144,-154,-83,-337,-339,-393,-141,-235,-235,-232,-78,-564,0,-186,0,-956,-940,-697,-608,-29942,-6111,-29971,-29972,-29977,-29974,-29974,-29975,-29978,-29979,-29979,-29980,-29976,-29973]} 1. Nf3 {[%emt 0:00:09]} f5 {[%emt 0:00:42]} 2. c4 {[%emt 0:00:22]} Nf6 {[%emt 0:00:15]} 3. e3 {[%emt 0:00:09]} g6 {[%emt 0:00:20]} 4. d4 {[%emt 0:01:17]} Bg7 {[%emt 0:00:17]} 5. Nc3 {[%emt 0:00:33]} O-O {[%emt 0:00:17]} 6. Be2 {[%emt 0:00:59]} d6 {[%emt 0:00:46][%cal Bd7d6,Bd6e5,Be5e4][%mdl 32]} 7. b4 {[%emt 0:06:08]} c5 {[%emt 0:12:56]} 8. b5 {[%emt 0:09:13]} (8. dxc5 Ne4 9. Nxe4 Bxa1 $15) (8. bxc5 $14 dxc5 9. O-O) 8... e5 $11 {[%emt 0:13:23]} 9. dxe5 {[%emt 0:11:17]} dxe5 {[%emt 0:00:44]} 10. Qc2 {[%emt 0:01:39]} (10. Nxe5 $2 Ne4 11. Nxe4 Qxd1+ 12. Kxd1 fxe4 $19 (12... Bxe5 13. Nxc5 Bxa1 14. Kc2 $19)) (10. e4 $11) 10... e4 $15 {[%emt 0:00:23]} 11. Nd2 {[%emt 0:01:07]} Be6 {[%emt 0:01:31]} 12. O-O {[%emt 0:02:12]} Nbd7 {[%emt 0:00:27]} 13. Rd1 {[%emt 0:21:01]} Qc7 {[%emt 0:01:13]} 14. f4 {[%emt 0:04:38] Prevents Ne5} (14. Bb2 $15) 14... exf3 $1 $17 {[%emt 0:06:01]} 15. Nxf3 {[%emt 0:00:25]} Rad8 {[%emt 0:06:54]} 16. Ng5 {[%emt 0:03:27]} Rfe8 {[%emt 0:06:50]} 17. Bb2 {[%emt 0:00:52]} h6 {[%emt 0:02:25]} 18. Nxe6 {[%emt 0:00:40]} Rxe6 {[%emt 0:00:07]} 19. Nd5 {[%emt 0:01:39]} Nxd5 {[%emt 0:02:16]} 20. Rxd5 {[%emt 0:00:51]} (20. cxd5 $15 Rxe3 21. d6) 20... Nf6 {[%emt 0:01:38]} (20... Rxe3 21. Rad1 $14) 21. Rxd8+ {[%emt 0:03:19]} Qxd8 {[%emt 0:01:15]} 22. Rd1 {[%emt 0:01:12]} Qe7 {[%emt 0:06:16]} 23. Qd2 {[%emt 0:08:39]} Ne8 {[%emt 0:15:16]} ({Black should try} 23... Rxe3 $17 24. Bf3 Kh7) 24. Bxg7 $11 {[%emt 0:05:09] A strong pair of Bishops.} Rd6 $2 {[%emt 0:03:11]} (24... Kxg7 $11 {and Black has nothing to worry.} 25. Qd8 Qxd8 (25... Rxe3 $2 26. Rd7 $18) 26. Rxd8 Rxe3 27. Rd7+ Kf6) 25. Qc3 $2 {[%emt 0:02:33]} (25. Bd4 $1 $18 {[%cal Rd4c5]}) 25... Qxg7 {[%emt 0:00:38]} 26. Qxg7+ {[%emt 0:00:47]} Kxg7 {[%emt 0:00:07][%mdl 4096] Endgame KRB-KRN} 27. Kf2 {[%emt 0:02:57]} Kf6 {[%emt 0:00:47]} 28. g4 {[%emt 0:02:22]} (28. Rxd6+ $15 Nxd6 29. Bd3) 28... fxg4 $17 {[%emt 0:00:43]} 29. Bxg4 {[%emt 0:00:22]} Ke5 {[%emt 0:00:27]} 30. Rxd6 $2 {[%emt 0:05:28]} (30. Rg1 $17) 30... Nxd6 {[%emt 0:00:07] KB-KN} (30... Kxd6 31. Be2 $17) 31. Bf3 {[%emt 0:00:40]} b6 {[%emt 0:05:05]} (31... Nxc4 32. Bxb7 Na3 33. Bc6 $17) 32. Bd5 {[%emt 0:00:14]} Ne4+ {[%emt 0:00:50]} (32... Nxb5 $142 33. a4 Nd6) 33. Kf3 $19 {[%emt 0:00:29]} Nc3 {[%emt 0:03:24]} 34. Bc6 {[%emt 0:01:32] [#]} Nxa2 {[%emt 0:00:20]} (34... g5 $142 $1 35. a3 Nb1) 35. Be8 $2 {[%emt 0:01:27][%mdl 8192]} (35. Ke2 $17) 35... g5 {[%emt 0:00:48]} 36. Bc6 {[%emt 0:00:25] [#]} Nb4 $2 {[%emt 0:01:28]} (36... Nc3 $1 $19 {White must now prevent ...Kf6.} 37. Kg4 Nb1) 37. Bb7 {[%emt 0:00:16]} (37. Be8 $17 {was called for.}) 37... h5 {[%emt 0:01:03]} 38. h3 {[%emt 0:00:10]} Nc2 $2 {[%emt 0:00:32]} (38... Nd3 $19 {has better winning chances.} 39. Ke2 Nc1+ (39... Nb2 40. Bd5 $17) 40. Kd2 Nb3+ 41. Kc3 Na5) 39. Bd5 $2 {[%emt 0:00:29][%mdl 8192]} (39. Ke2 $17 {was the crucial defense.}) 39... Nb4 $2 {[%emt 0:04:15]} (39... g4+ 40. hxg4 hxg4+ 41. Ke2 Na3) 40. Bb7 $1 {[%emt 0:00:53]} Nc2 $2 {[%emt 0:01:25]} (40... g4+ $19 41. hxg4 hxg4+ 42. Kxg4 Nc2) 41. Bc6 $2 {[%emt 0:03:34][%mdl 8192]} (41. Bd5 $11) 41... Na3 {[%emt 0:00:19]} 42. Be8 {[%emt 0:02:55]} g4+ {[%emt 0:00:28]} 43. hxg4 {[%emt 0:01:26]} hxg4+ {[%emt 0:00:07]} ({Stronger than} 43... Nxc4 44. gxh5 Nd6 45. Bc6 $11) 44. Kxg4 {[%emt 0:01:17]} Ke4 {[%emt 0:00:10]} 45. Kg5 {[%emt 0:00:29]} Kxe3 {[%emt 0:00:56]} 46. Kf5 {[%emt 0:00:12]} Kd4 {[%emt 0:00:14]} 47. Bf7 {[%emt 0:01:05]} Nxc4 {[%emt 0:00:11]} 48. Ke6 {[%emt 0:00:02]} Na3 {[%emt 0:00:38]} 49. Be8 {[%emt 0:00:15]} Kc4 {[%emt 0:00:50]} 0-1

[Event "LEM Niedersachsen-A-Open 2025"]
[Site "Verden"]
[Date "2025.01.04"]
[Round "6.28"]
[White "Loecken, Siegfried"]
[Black "Direk, Oguzhan"]
[Result "1/2-1/2"]
[ECO "A07"]
[WhiteElo "2004"]
[BlackElo "1838"]
[Annotator "RC"]
[PlyCount "71"]
[EventDate "2024.12.27"]
[EventType "swiss"]
[EventCountry "GER"]
[SourceTitle "playchess.com"]
[Source "ChessBase"]
[SourceQuality "1"]
[TimeControl "40/5400+30:1800+30"]

1. Nf3 {[%emt 0:00:00]} d5 {[%emt 0:01:01]} 2. g3 {[%emt 0:00:09]} c6 {[%emt 0:01:08]} 3. Bg2 {[%emt 0:00:04]} Nf6 {[%emt 0:00:17]} 4. O-O {[%emt 0:00:09]} Bf5 {[%emt 0:00:21]} 5. d3 {[%emt 0:01:00]} Nbd7 {[%emt 0:00:29]} 6. Nh4 {[%emt 0:00:59]} Bg4 {[%emt 0:01:36]} 7. h3 {[%emt 0:00:13]} Bh5 {[%emt 0:01:45]} 8. g4 {[%emt 0:01:09]} Bg6 {[%emt 0:03:10]} 9. Nxg6 {[%emt 0:01:59]} hxg6 {[%emt 0:01:15]} 10. Bf4 {[%emt 0:00:24]} e5 {[%emt 0:01:32]} 11. Bg3 {[%emt 0:00:03]} Bd6 {[%emt 0:02:00]} 12. c4 {[%emt 0:01:14]} Qe7 {[%emt 0:04:10]} 13. cxd5 {[%emt 0:00:12]} Nxd5 {[%emt 0:03:21]} 14. Nc3 {[%emt 0:00:20]} Nf4 {[%emt 0:01:11]} 15. Bxf4 {[%emt 0:01:25]} exf4 {[%emt 0:00:05]} 16. Ne4 {[%emt 0:03:05]} f5 {[%emt 0:02:51]} 17. Nxd6+ {[%emt 0:00:18]} Qxd6 {[%emt 0:00:04]} 18. gxf5 {[%emt 0:00:21]} gxf5 {[%emt 0:00:12]} 19. Rc1 {[%emt 0:01:20]} g5 {[%emt 0:02:53]} 20. e3 {[%emt 0:04:36]} g4 {[%emt 0:02:32]} 21. exf4 {[%emt 0:00:42]} O-O-O {[%emt 0:05:08]} 22. Qa4 {[%emt 0:00:10]} gxh3 {[%emt 0:00:51]} 23. Bxc6 {[%emt 0:03:56]} Nc5 {[%emt 0:02:44]} 24. Bf3 {[%emt 0:06:20]} Kb8 {[%emt 0:01:52]} 25. Qb4 {[%emt 0:01:09]} Qxd3 {[%emt 0:01:40]} 26. Qc3 {[%emt 0:01:21]} Ne6 {[%emt 0:19:25]} 27. Rfe1 {[%emt 0:07:02]} Rhg8+ {[%emt 0:11:39]} 28. Kh1 {[%emt 0:01:07]} Qxc3 {[%emt 0:04:52]} 29. Rxc3 {[%emt 0:00:19]} Nxf4 {[%emt 0:00:06]} 30. Rc4 {[%emt 0:02:37]} Ng6 {[%emt 0:05:53]} 31. Re6 {[%emt 0:25:05]} Rde8 {[%emt 0:04:18]} 32. Rxe8+ {[%emt 0:06:37]} Rxe8 {[%emt 0:00:02]} 33. Bh5 {[%emt 0:00:14]} Re1+ {[%emt 0:04:53]} 34. Kh2 {[%emt 0:00:24]} Ne5 {[%emt 0:00:28]} 35. Rf4 {[%emt 0:01:30]} Ng4+ {[%emt 0:00:42]} 36. Bxg4 {[%emt 0:01:13]} 1/2-1/2

[Event "LEM Niedersachsen-A-Open 2025"]
[Site "Verden"]
[Date "2025.01.04"]
[Round "6.29"]
[White "Goertzen, Simon"]
[Black "Rausch, Darius"]
[Result "0-1"]
[ECO "B03"]
[WhiteElo "1887"]
[BlackElo "1840"]
[Annotator "NA RC"]
[PlyCount "64"]
[EventDate "2024.12.27"]
[EventType "swiss"]
[EventCountry "GER"]
[SourceTitle "playchess.com"]
[Source "ChessBase"]
[SourceQuality "1"]
[TimeControl "40/5400+30:1800+30"]

1. e4 {[%emt 0:04:01]} Nf6 {[%emt 0:00:04]} 2. e5 {[%emt 0:00:11]} Nd5 {[%emt 0:00:03]} 3. c4 {[%emt 0:00:05]} Nb6 {[%emt 0:00:04]} 4. d4 {[%emt 0:00:04]} d6 {[%emt 0:00:03]} 5. f4 {[%emt 0:00:05]} dxe5 {[%emt 0:00:05]} 6. fxe5 {[%emt 0:00:10]} Nc6 {[%emt 0:00:04]} 7. Be3 {[%emt 0:00:57]} Bf5 {[%emt 0:00:06]} 8. Nf3 {[%emt 0:00:31]} e6 {[%emt 0:00:08]} 9. Bd3 {[%emt 0:02:06]} Bg4 {[%emt 0:05:23]} 10. Be4 {[%emt 0:13:28]} Bxf3 {[%emt 0:16:33]} 11. Qxf3 {[%emt 0:04:20]} Nxd4 {[%emt 0:01:09]} 12. Bxd4 {[%emt 0:00:08]} Qxd4 {[%emt 0:00:04]} 13. Rf1 {[%emt 0:06:11]} Bb4+ {[%emt 0:04:16]} 14. Nc3 {[%emt 0:00:10]} O-O {[%emt 0:00:50]} 15. a3 {[%emt 0:15:03]} Nxc4 {[%emt 0:07:51]} 16. Qf4 {[%emt 0:14:51]} Bxc3+ {[%emt 0:04:59]} 17. bxc3 {[%emt 0:00:16]} Qxc3+ {[%emt 0:00:13]} 18. Kf2 {[%emt 0:00:30]} Qd4+ {[%emt 0:05:42]} 19. Kg3 {[%emt 0:03:35]} Qxe5 {[%emt 0:04:34]} 20. Rfc1 {[%emt 0:04:41]} c6 {[%emt 0:06:03]} 21. a4 {[%emt 0:05:53]} Qxf4+ {[%emt 0:02:51]} 22. Kxf4 {[%emt 0:00:04]} Na5 {[%emt 0:00:58]} 23. Rab1 {[%emt 0:00:38]} Rfd8 {[%emt 0:01:19]} 24. Rc5 {[%emt 0:00:34]} b6 {[%emt 0:00:15]} 25. Rh5 {[%emt 0:00:24]} g6 {[%emt 0:01:21]} 26. Rg5 {[%emt 0:02:29]} Rd4 {[%emt 0:01:24]} 27. Kf3 {[%emt 0:05:18]} Rad8 {[%emt 0:00:27]} 28. h4 {[%emt 0:06:08]} Nc4 {[%emt 0:02:16]} 29. Re1 {[%emt 0:02:17]} Nd2+ {[%emt 0:00:19]} 30. Kf4 {[%emt 0:00:15]} f5 {[%emt 0:00:56]} 31. h5 {[%emt 0:01:22]} Rxe4+ {[%emt 0:00:51]} 32. Rxe4 {[%emt 0:00:13]} Nxe4 {[%emt 0:00:06]} 0-1

[Event "LEM Niedersachsen-A-Open 2025"]
[Site "Verden"]
[Date "2025.01.04"]
[Round "6.30"]
[White "Harms, Friedjof"]
[Black "Beckmann, Jonathan"]
[Result "1/2-1/2"]
[ECO "B23"]
[WhiteElo "1884"]
[BlackElo "1812"]
[Annotator "NA RC"]
[PlyCount "50"]
[EventDate "2024.12.27"]
[EventType "swiss"]
[EventCountry "GER"]
[SourceTitle "playchess.com"]
[Source "ChessBase"]
[SourceQuality "1"]
[TimeControl "40/5400+30:1800+30"]

1. e4 {[%emt 0:00:01]} c5 {[%emt 0:00:05]} 2. Nc3 {[%emt 0:00:12]} a6 {[%emt 0:00:04]} 3. f4 {[%emt 0:00:09]} b5 {[%emt 0:00:07]} 4. Nf3 {[%emt 0:01:58]} Bb7 {[%emt 0:00:43]} 5. d4 {[%emt 0:00:53]} cxd4 {[%emt 0:21:36]} 6. Qxd4 {[%emt 0:01:53]} Nc6 {[%emt 0:00:57]} 7. Qf2 {[%emt 0:00:40]} e6 {[%emt 0:04:39]} 8. a3 {[%emt 0:02:07]} Qa5 {[%emt 0:07:53]} 9. Nd4 {[%emt 0:11:35]} Nxd4 {[%emt 0:09:37]} 10. Qxd4 {[%emt 0:00:17]} b4 {[%emt 0:00:28]} 11. Ne2 {[%emt 0:17:02]} bxa3+ {[%emt 0:01:19]} 12. Bd2 {[%emt 0:00:10]} Qc5 {[%emt 0:00:41]} 13. Qxc5 {[%emt 0:02:28]} Bxc5 {[%emt 0:00:07]} 14. b4 {[%emt 0:03:05]} Ba7 {[%emt 0:14:57]} 15. Ng3 {[%emt 0:00:40]} Nf6 {[%emt 0:00:28]} 16. Bd3 {[%emt 0:00:39]} h5 {[%emt 0:03:14]} 17. e5 {[%emt 0:09:21]} Nd5 {[%emt 0:06:40]} 18. Ne4 {[%emt 0:02:43]} Ke7 {[%emt 0:01:07]} 19. Nd6 {[%emt 0:06:44]} Rhb8 {[%emt 0:02:30]} 20. c4 {[%emt 0:12:55]} Ne3 {[%emt 0:02:38]} 21. Nxb7 {[%emt 0:03:51]} Rxb7 {[%emt 0:03:02]} 22. Ke2 {[%emt 0:05:41]} Nf5 {[%emt 0:02:49]} 23. Be4 {[%emt 0:00:12]} Nd4+ {[%emt 0:00:23]} 24. Kd3 {[%emt 0:00:56]} Nc6 {[%emt 0:00:21]} 25. Bxc6 {[%emt 0:01:20]} dxc6 {[%emt 0:00:25]} 1/2-1/2

[Event "LEM Niedersachsen-A-Open 2025"]
[Site "Verden"]
[Date "2025.01.04"]
[Round "6.31"]
[White "Moerke, Niklas"]
[Black "Wilmink, Luca"]
[Result "1-0"]
[ECO "B34"]
[WhiteElo "1875"]
[BlackElo "1792"]
[Annotator "NA RC"]
[PlyCount "137"]
[EventDate "2024.12.27"]
[EventType "swiss"]
[EventCountry "GER"]
[SourceTitle "playchess.com"]
[Source "ChessBase"]
[SourceQuality "1"]
[TimeControl "40/5400+30:1800+30"]

1. e4 {[%emt 0:00:05]} c5 {[%emt 0:00:09]} 2. Nf3 {[%emt 0:00:01]} Nc6 {[%emt 0:00:29]} 3. d4 {[%emt 0:00:04]} cxd4 {[%emt 0:00:19]} 4. Nxd4 {[%emt 0:00:06]} Nf6 {[%emt 0:00:24]} 5. Nc3 {[%emt 0:00:11]} g6 {[%emt 0:00:35]} 6. Nxc6 {[%emt 0:00:21]} dxc6 {[%emt 0:00:36]} 7. Qxd8+ {[%emt 0:00:06]} Kxd8 {[%emt 0:00:07]} 8. Bc4 {[%emt 0:00:08]} e6 {[%emt 0:00:55]} 9. e5 {[%emt 0:00:30]} Nd5 {[%emt 0:00:47]} 10. Ne4 {[%emt 0:04:39]} Be7 {[%emt 0:00:27]} 11. Bh6 {[%emt 0:00:45]} b5 {[%emt 0:03:47]} 12. Be2 {[%emt 0:00:08]} Bb7 {[%emt 0:02:04]} 13. O-O-O {[%emt 0:03:26]} Kc7 {[%emt 0:01:01]} 14. Ng5 {[%emt 0:03:25]} Bxg5+ {[%emt 0:02:21]} 15. Bxg5 {[%emt 0:00:07]} h6 {[%emt 0:00:57]} 16. Bd2 {[%emt 0:00:30]} a5 {[%emt 0:00:27]} 17. c4 {[%emt 0:06:17]} bxc4 {[%emt 0:02:56]} 18. Bxc4 {[%emt 0:00:13]} g5 {[%emt 0:01:48]} 19. h4 {[%emt 0:01:45]} g4 {[%emt 0:04:05]} 20. h5 {[%emt 0:01:13]} Kb6 {[%emt 0:06:15]} 21. Rh4 {[%emt 0:02:21]} Rag8 {[%emt 0:03:40]} 22. Be2 {[%emt 0:01:41]} g3 {[%emt 0:02:10]} 23. fxg3 {[%emt 0:04:16]} Rxg3 {[%emt 0:01:07]} 24. Bf3 {[%emt 0:01:27]} Rgg8 {[%emt 0:03:42]} 25. Ra4 {[%emt 0:01:55]} Ra8 {[%emt 0:00:36]} 26. Rh1 {[%emt 0:05:08]} c5 {[%emt 0:02:06]} 27. a3 {[%emt 0:01:42]} Bc6 {[%emt 0:01:30]} 28. Rg4 {[%emt 0:00:32]} Ne7 {[%emt 0:01:40]} 29. Be2 {[%emt 0:04:05]} Nf5 {[%emt 0:02:41]} 30. Bd3 {[%emt 0:01:05]} Nd4 {[%emt 0:01:20]} 31. Be3 {[%emt 0:01:35]} Rad8 {[%emt 0:03:16]} 32. Rf1 {[%emt 0:03:50]} Rd7 {[%emt 0:10:20]} 33. Bxd4 {[%emt 0:02:11]} cxd4 {[%emt 0:04:24]} 34. Rg7 {[%emt 0:00:40]} Rd5 {[%emt 0:01:43]} 35. Re1 {[%emt 0:03:49]} Rd7 {[%emt 0:01:19]} 36. Kd2 {[%emt 0:05:00]} Bb5 {[%emt 0:03:19]} 37. Bxb5 {[%emt 0:01:31]} Kxb5 {[%emt 0:00:02]} 38. Kd3 {[%emt 0:00:23]} Ka4 {[%emt 0:00:49]} 39. Rg4 {[%emt 0:01:51]} Kb3 {[%emt 0:04:02]} 40. Re2 {[%emt 0:02:36]} Rhd8 {[%emt 0:02:23]} 41. Rg3 {[%emt 0:30:56]} Ka4 {[%emt 0:31:58]} 42. Rd2 {[%emt 0:01:16]} Rb8 {[%emt 0:01:04]} 43. Ke4 {[%emt 0:02:11]} Rb3 {[%emt 0:01:38]} 44. Rxb3 {[%emt 0:00:47]} Kxb3 {[%emt 0:00:02]} 45. Rxd4 {[%emt 0:00:28]} Rc7 {[%emt 0:04:55]} 46. Rd2 {[%emt 0:00:52]} Rc4+ {[%emt 0:00:42]} 47. Kf3 {[%emt 0:00:21]} Rh4 {[%emt 0:00:38]} 48. g4 {[%emt 0:00:28]} Rh3+ {[%emt 0:00:38]} 49. Kf4 {[%emt 0:00:49]} Rh1 {[%emt 0:00:25]} 50. Rf2 {[%emt 0:00:55]} Rg1 {[%emt 0:01:01]} 51. Kf3 {[%emt 0:01:02]} a4 {[%emt 0:00:36]} 52. Re2 {[%emt 0:02:14]} Kc4 {[%emt 0:02:08]} 53. Re4+ {[%emt 0:00:31]} Kd5 {[%emt 0:01:56]} 54. Rxa4 {[%emt 0:00:06]} Kxe5 {[%emt 0:00:10]} 55. b4 {[%emt 0:00:40]} Rf1+ {[%emt 0:00:32]} 56. Kg2 {[%emt 0:00:30]} Rf4 {[%emt 0:00:46]} 57. Kg3 {[%emt 0:00:09]} Rc4 {[%emt 0:00:14]} 58. Ra5+ {[%emt 0:00:17]} Kd6 {[%emt 0:17:29]} 59. b5 {[%emt 0:02:38]} f6 {[%emt 0:00:00]} 60. a4 {[%emt 0:00:37]} Rb4 {[%emt 0:00:00]} 61. Ra6+ {[%emt 0:01:32]} Kd7 {[%emt 0:00:00]} 62. b6 {[%emt 0:00:23]} Rb3+ {[%emt 0:00:00]} 63. Kf4 {[%emt 0:02:39]} Rb4+ {[%emt 0:00:00]} 64. Kf3 {[%emt 0:00:11]} Rb3+ {[%emt 0:00:00]} 65. Kf2 {[%emt 0:01:15]} Rb4 {[%emt 0:00:00]} 66. a5 {[%emt 0:00:26]} Rxg4 {[%emt 0:00:00]} 67. Ra7+ {[%emt 0:02:31]} Kc8 {[%emt 0:00:00]} 68. a6 {[%emt 0:01:38]} Ra4 {[%emt 0:00:00]} 69. Ra8+ {[%emt 0:00:49]} 1-0

[Event "LEM Niedersachsen-A-Open 2025"]
[Site "Verden"]
[Date "2025.01.04"]
[Round "6.32"]
[White "Schulze, Tim"]
[Black "Lehmkuhl, Stefan"]
[Result "1/2-1/2"]
[ECO "A46"]
[WhiteElo "1804"]
[BlackElo "1874"]
[Annotator "NA RC"]
[PlyCount "34"]
[EventDate "2024.12.27"]
[EventType "swiss"]
[EventCountry "GER"]
[SourceTitle "playchess.com"]
[Source "ChessBase"]
[SourceQuality "1"]
[TimeControl "40/5400+30:1800+30"]

1. Nf3 {[%emt 0:00:03]} Nf6 {[%emt 0:01:12]} 2. g3 {[%emt 0:00:06]} d6 {[%emt 0:00:37]} 3. d4 {[%emt 0:00:09]} c6 {[%emt 0:00:36]} 4. Bg2 {[%emt 0:00:27]} Nbd7 {[%emt 0:00:18]} 5. O-O {[%emt 0:00:41]} e5 {[%emt 0:00:16]} 6. c4 {[%emt 0:03:06]} Qc7 {[%emt 0:00:24]} 7. Nc3 {[%emt 0:01:23]} Be7 {[%emt 0:00:09]} 8. d5 {[%emt 0:04:47]} O-O {[%emt 0:00:14]} 9. e4 {[%emt 0:02:17]} a5 {[%emt 0:01:06]} 10. Ne1 {[%emt 0:04:06]} Nc5 {[%emt 0:04:47]} 11. Nd3 {[%emt 0:01:22]} Nxd3 {[%emt 0:01:12]} 12. Qxd3 {[%emt 0:00:16]} h6 {[%emt 0:03:28]} 13. h3 {[%emt 0:06:03]} Nh5 {[%emt 0:02:25]} 14. Kh2 {[%emt 0:06:53]} g5 {[%emt 0:02:01]} 15. Qe2 {[%emt 0:01:55]} Ng7 {[%emt 0:00:11]} 16. f4 {[%emt 0:00:19]} f6 {[%emt 0:02:17]} 17. Be3 {[%emt 0:05:38]} Bd7 {[%emt 0:00:37]} 1/2-1/2